lending/lending_fUSD_20240830
["ID","MTS","AMOUNT","RATE_DAILY","PERIOD"]
[336687402,1725022240604,-1799.223,0.00011,2]
[336687404,1725022240616,-352.04500005,0.00011,2]
[336687406,1725022240627,-46374.92915533,0.00011,2]
[336687409,1725022240638,-688.59429274,0.00011,2]
[336687411,1725022240649,-450.28708009,0.00011,2]
[336687690,1725022243412,-701.666667,0.00011,2]
[336687692,1725022243423,-3383.70148686,0.00011,2]
[336687694,1725022243437,-3799.999993,0.00011,2]
[336687696,1725022243448,-2743.43994,0.00011,2]
[336687698,1725022243459,-513.18500005,0.00011,2]
[336687700,1725022243473,-3390.71744634,0.00011,2]
[336687702,1725022243484,-1186.17584361,0.00011,2]
[336687705,1725022243495,-1543.47473876,0.00011,2]
[336687707,1725022243506,-5150.83994801,0.00011,2]
[336687709,1725022243523,-835.04991627,0.00011,2]
[336687711,1725022243533,-2055.24117572,0.00011,2]
[336687714,1725022243545,-5797.7866457,0.00011,2]
[336687726,1725022243658,-1006.62630079,0.00011,2]
[336687728,1725022243669,-352.72799642,0.00011,2]
[336687730,1725022243685,-7632.33263246,0.00011,2]
[336687732,1725022243697,-1130.77964873,0.00011,2]
[336687734,1725022243708,-1401.9999998,0.00011,2]
[336687736,1725022243720,-11013.0,0.00011,2]
[336687738,1725022243731,-478911.98501154,0.00011,2]
[336687740,1725022243742,-320.11,0.00011,2]
[336687743,1725022243754,-23045.08068141,0.00011,2]
[336687745,1725022243768,-14090.80786998,0.00011,2]
[336687748,1725022243781,-438.5695808,0.00011,2]
[336687811,1725022244541,-512.00786555,0.00011,2]
[336687812,1725022244552,-15843.63179293,0.00011,2]
[336687813,1725022244565,-17542.56453125,0.00011,2]
[336687814,1725022244580,-1175.26064,0.00011,2]
[336687815,1725022244592,-1594538.63845214,0.00011,2]
[336687816,1725022244604,-5669.20421995,0.00011,2]
[336687817,1725022244615,-557.84664193,0.00011,2]
[336687818,1725022244626,-660.19,0.00011,2]
[336687819,1725022244638,-2204.45423647,0.00011,2]
[336687822,1725022244650,-582.53249995,0.00011,2]
[336687823,1725022244662,-670.67437459,0.00011,2]
[336687824,1725022244677,-3075.72210345,0.00011,2]
[336687826,1725022244690,-695.84866301,0.00011,2]
[336687829,1725022244702,-489.29187735,0.00011,2]
[336687831,1725022244713,-2098.93763419,0.00011,2]
[336687833,1725022244728,-1269.9797806,0.00011,2]
[336687943,1725022246078,-3348.50149363,0.00011,2]
[336687949,1725022246133,-487.0347352,0.00011,2]
[336687962,1725022246245,-476947.26995534,0.00011,2]
[336687964,1725022246258,-15246.41514133,0.00011,2]
[336687970,1725022246309,-495.15,0.00011,2]
[336687973,1725022246320,-15539.40003336,0.00011,2]
[336687975,1725022246331,-9831.76687634,0.00011,2]
[336687977,1725022246343,-7036.33453213,0.00011,2]
[336687979,1725022246354,-4511.90414,0.00011,2]
[336687981,1725022246365,-1650.24238056,0.00011,2]
[336687984,1725022246378,-331.20062729,0.00011,2]
[336687986,1725022246389,-1602.11827498,0.00011,2]
[336687988,1725022246401,-315.79999999,0.00011,2]
[336687990,1725022246412,-5990.73861914,0.00011,2]
[336688299,1725022250944,400.0,0.000103,3]
[336688300,1725022253097,900.0,0.000104,3]
[336688301,1725022253756,6112.8283,0.00010872,2]
[336688302,1725022255186,1400.0,0.000105,3]
[336688303,1725022257316,1900.0,0.000106,3]
[336688304,1725022259486,2400.0,0.000107,3]
[336688305,1725022261601,400.0,0.000108,3]
[336688306,1725022263694,400.0,0.000109,3]
[336688308,1725022374664,466.3484,0.000109,2]
[336688310,1725022411051,500.0,0.00010912,2]
[336688311,1725022415786,200.0,0.00010959,2]
[336688312,1725022544749,695.63,0.00010077,2]
[336688313,1725022598245,58047.0141,0.000109,2]
[336688314,1725022609700,372.33885,0.0001089,2]
[336688315,1725022622410,1000.0,0.000109,2]
[336688316,1725022622456,161.0413803,0.000109,2]
[336688318,1725022671374,1000.0,0.000109,2]
[336688319,1725022684171,2500.0,0.000109,2]
[336688321,1725022762358,187.53,0.00010959,2]
[336688322,1725022824889,766.9415,0.000109,2]
[336688323,1725022873704,1000.0,0.000109,2]
[336688324,1725022886122,2500.0,0.000109,2]
[336688325,1725022964062,-303.03020671,0.00010984,2]
[336688326,1725022964085,-184.0,0.00010993,2]
[336688327,1725022964108,-150.0,0.00010993,2]
[336688328,1725022964131,-300.0,0.00010993,2]
[336688329,1725022976452,-993.09321812,0.00010994,2]
[336688330,1725022976476,-3060.6298092,0.00010994,2]
[336688331,1725022976500,-5017.325747,0.00010994,2]
[336688332,1725022976525,-10928.95122568,0.00010994,2]
[336688333,1725022981607,300.0,0.00010993,2]
[336688334,1725022995676,-20000.0,0.00010994,2]
[336688335,1725023007195,-150.0,0.00010996,2]
[336688336,1725023007220,-19850.0,0.00010997,2]
[336688337,1725023014069,500.0,0.00010912,2]
[336688338,1725023016339,-5216.33130448,0.00010997,2]
[336688339,1725023016361,-3693.96,0.00011,2]
[336688340,1725023016388,-11089.70869552,0.00011,2]
[336688341,1725023054542,310.28237,0.0001089,2]
[336688342,1725023064117,1117.0285,0.000109,2]
[336688343,1725023064843,685.97,9.52e-05,2]
[336688344,1725023082778,16149.68892329,0.000109,2]
[336688345,1725023082802,23079.69087671,0.000109,2]
[336688346,1725023090404,2500.0,0.000109,2]
[336688347,1725023092756,161.04138029,0.00010902,2]
[336688348,1725023114280,34587.0134,0.000109,2]
[336688349,1725023231883,1765.2571,0.000109,2]
[336688350,1725023233715,18834.5716,0.000109,2]
[336688351,1725023244087,245000.0,0.000109,2]
[336688353,1725023249308,173.68,0.00010959,2]
[336688354,1725023276418,326.1077,0.000109,2]
[336688355,1725023298969,236.7166,0.000109,2]
[336688356,1725023300776,4513.4936,0.000109,2]
[336688357,1725023310337,6460.3544,0.000109,2]
[336688358,1725023327310,500.0,0.000109,2]
[336688359,1725023367309,-300.0,0.00010993,2]
[336688361,1725023367343,-269.7312014,0.00010994,2]
[336688366,1725023382113,73483.0087,0.000109,2]
[336688371,1725023432312,-218.7662587,0.00010994,2]
[336688372,1725023432321,-446.35602195,0.00010994,2]
[336688373,1725023432368,-20700.0,0.00010994,2]
[336688379,1725023440398,-454.37056343,0.00010994,2]
[336688380,1725023440410,-379.285,0.00010994,2]
[336688381,1725023440565,-8882.29792352,0.00010994,2]
[336688382,1725023440575,-2894.1153838,0.00010994,2]
[336688383,1725023440584,-3682.47,0.00011,2]
[336688384,1725023440594,-685227.11594882,0.00011,2]
[336688432,1725023443285,-3156.96141059,0.00011,2]
[336688433,1725023443346,-571.01028,0.00011,2]
[336688436,1725023456073,150.0,0.0001089,2]
[336688437,1725023461139,743.06186494,0.0001089,2]
[336688438,1725023464939,153.39746,0.0001089,2]
[336688439,1725023470154,447.49,0.00010959,2]
[336688440,1725023477559,258.56864,0.0001089,2]
[336688441,1725023486311,5271.346074,0.000109,2]
[336688442,1725023525561,610.8104,0.000109,2]
[336688443,1725023536777,488.2987,0.000109,2]
[336688444,1725023546245,5984.2778,0.000109,2]
[336688445,1725023553223,-438.0,0.00010993,2]
[336688446,1725023553244,-6558.5211046,0.00010994,2]
[336688447,1725023553264,-820.8221784,0.00010994,2]
[336688448,1725023553283,-648.32500001,0.00010999,2]
[336688449,1725023553303,-151.81644682,0.00010999,2]
[336688450,1725023553327,-3457.18793341,0.00010999,2]
[336688451,1725023553347,-150.0,0.00010999,2]
[336688452,1725023553371,-28775.32733676,0.00011,2]
[336688453,1725023555352,161.04138029,0.000109,2]
[336688455,1725023557688,320.0730057,0.000109,2]
[336688456,1725023577058,702.77,9.442e-05,2]
[336688457,1725023591825,500.0,0.00024,120]
[336688458,1725023609990,4800.1322,0.000109,2]
[336688459,1725023612273,500.0,0.00010912,2]
[336688460,1725023616244,200.0,0.00010959,2]
[336688461,1725023644062,1000.0,0.000109,2]
[336688462,1725023680664,15192.3453,0.000109,2]
[336688463,1725023759219,150.0,0.00022,60]
[336688464,1725023772304,213.206,0.000109,2]
[336688465,1725023778212,150.0,0.00022,60]
[336688466,1725023793693,288.95,0.00022,60]
[336688468,1725023835296,162.99,0.00010959,2]
[336688469,1725023883123,1264.5561,0.00010884,2]
[336688470,1725023884230,500.0,0.0001,2]
[336688471,1725023884438,500.0,0.0001,2]
[336688472,1725023885216,500.0,0.0001,2]
[336688473,1725023885380,500.0,0.0001,2]
[336688474,1725023886472,212.21,0.0001,2]
[336688475,1725023886843,588.67,0.0001,2]
[336688476,1725023891534,215.47387,0.0001089,2]
[336688477,1725024005651,161.04138029,0.000109,2]
[336688478,1725024123498,3098.2828,0.000109,2]
[336688479,1725024184430,693.51,0.0001008,2]
[336688480,1725024211776,500.0,0.00010912,2]
[336688481,1725024215304,1539.99888992,0.00024,120]
[336688482,1725024275734,153.52,8.82e-05,2]
[336688483,1725024322145,1785.20875103,0.00024,120]
[336688484,1725024329301,52520.30187742,0.000101,2]
[336688485,1725024329934,179.56156,0.0001089,2]
[336688486,1725024354118,192.0,0.00010938,2]
[336688487,1725024395298,197.49,0.00010158,2]
[336688488,1725024397026,25164.25731288,0.0001089,2]
[336688489,1725024401480,250.0,0.00010129,2]
[336688490,1725024407623,5268.23,0.00010145,2]
[336688491,1725024417568,560.72,0.00010165,2]
[336688492,1725024449008,161.04138029,0.000109,2]
[336688493,1725024495519,500.0,0.00024,120]
[336688495,1725024505454,500.0,0.00024,120]
[336688496,1725024522144,-300.0,0.00010972,2]
[336688497,1725024522173,-155.04844269,0.00010973,2]
[336688498,1725024522202,-200.06341945,0.00010973,2]
[336688499,1725024522233,-800.0,0.00010978,2]
[336688500,1725024522262,-250.0,0.0001098,2]
[336688501,1725024522291,-2019.33389942,0.00010984,2]
[336688502,1725024522330,-420.12081307,0.00010984,2]
[336688503,1725024522358,-456.35823393,0.00010988,2]
[336688504,1725024522395,-764.86176607,0.00010988,2]
[336688505,1725024522427,-2959.58399549,0.0001099,2]
[336688514,1725024577028,1483.5472533,0.000109,2]
[336688515,1725024580457,1483.54725329,0.000109,2]
[336688516,1725024582286,174.17506022,0.000109,2]
[336688525,1725024631665,-226.61765101,0.0001099,2]
[336688527,1725024631675,-250.0,0.0001099,2]
[336688529,1725024631684,-4918.76353956,0.00010994,2]
[336688530,1725024631696,-10207.07058816,0.00010994,2]
[336688531,1725024631707,-1255.12,0.00010994,2]
[336688532,1725024631718,-1063.13158441,0.00010994,2]
[336688533,1725024631729,-3331.60599766,0.00010994,2]
[336688534,1725024631744,-351.89855854,0.00010994,2]
[336688535,1725024631755,-578.5596183,0.00010994,2]
[336688537,1725024631770,-2670.21,0.00010994,2]
[336688539,1725024631781,-66.18042317,0.00010994,2]
[336688541,1725024631791,-2520.7605765,0.00010994,2]
[336688543,1725024631800,-1590.8466917,0.00010994,2]
[336688545,1725024631809,-2641.75,0.00010997,2]
[336688547,1725024631818,-4527.81672516,0.00010999,2]
[336688549,1725024631827,-1212.16049775,0.00011,2]
[336688551,1725024631839,-793.35,0.00011,2]
[336688553,1725024631850,-1771.11950225,0.00011,2]
[336688555,1725024631859,-1029.34049775,0.00011,2]
[336688557,1725024631870,-1421.18809713,0.00011,2]
[336688559,1725024631881,-750.26546194,0.00011,2]
[336688561,1725024631892,-1266.60175907,0.00011,2]
[336688563,1725024631903,-6121.07153573,0.00011,2]
[336688565,1725024631914,-22658.45920343,0.00011,2]
[336688568,1725024631924,-664.57727663,0.00011,2]
[336688570,1725024631935,-59896.56679957,0.00011,2]
[336688572,1725024631947,-522.67520343,0.00011,2]
[336688574,1725024631959,-1411.31541056,0.00011,2]
[336688586,1725024637420,-500.0,0.00011,2]
[336688587,1725024637432,-612.86476714,0.00011,2]
[336688588,1725024637444,-799.5914014,0.00011,2]
[336688590,1725024637458,-888.51999758,0.00011,2]
[336688592,1725024637469,-1893.1272692,0.00011,2]
[336688594,1725024637487,-612.18240239,0.00011,2]
[336688595,1725024637498,-737.79817048,0.00011,2]
[336688596,1725024637509,-597.24,0.00011,2]
[336688597,1725024637549,-348.23005832,0.00011,2]
[336688598,1725024637587,-449.79205535,0.00011,2]
[336688599,1725024637598,-765.41975306,0.00011,2]
[336688600,1725024637609,-1340.01178555,0.00011,2]
[336688601,1725024637620,-3181.070885,0.00011,2]
[336688602,1725024637632,-12338.0355354,0.00011,2]
[336688603,1725024637643,-1518.9672266,0.00011,2]
[336688604,1725024637655,-1921.952907,0.00011,2]
[336688605,1725024637723,-117480.13940538,0.00011,2]
[336688606,1725024637734,-5740.77834692,0.00011,2]
[336688607,1725024637751,-313.27,0.00011,2]
[336688608,1725024637762,-254.99999,0.00011,2]
[336688609,1725024637774,-546.8170997,0.00011,2]
[336688611,1725024637785,-5618.01578859,0.00011,2]
[336688687,1725024639427,-361.07065337,0.00011,2]
[336688688,1725024639438,-927.22751103,0.00011,2]
[336688689,1725024639450,-9894.76560632,0.00011,2]
[336688690,1725024639501,-3380.13510885,0.00011,2]
[336688691,1725024639513,-1202.40068981,0.00011,2]
[336688692,1725024639525,-96257.63241954,0.00011,2]
[336688693,1725024639537,-662.68309162,0.00011,2]
[336688694,1725024639550,-558.89350208,0.00011,2]
[336688695,1725024639562,-10027.50451342,0.00011,2]
[336688696,1725024639575,-1048.582763,0.00011,2]
[336688697,1725024639586,-846.52210567,0.00011,2]
[336688698,1725024639598,-1637.29710056,0.00011,2]
[336688699,1725024639610,-982.24203917,0.00011,2]
[336688700,1725024639621,-303.35499935,0.00011,2]
[336688701,1725024639632,-123638.72677936,0.00011,2]
[336688702,1725024639642,-371089.74020687,0.00011,2]
[336688703,1725024639653,-175119.9432235,0.00011,2]
[336688704,1725024639663,-71013.14537021,0.00011,2]
[336688705,1725024639674,-344475.0874631,0.00011,2]
[336688706,1725024639685,-983.2495644,0.00011,2]
[336688707,1725024639698,-1001.60210072,0.00011,2]
[336688708,1725024639709,-330.40112119,0.00011,2]
[336688709,1725024639721,-714.13926867,0.00011,2]
[336688710,1725024639732,-373.40606549,0.00011,2]
[336688711,1725024639749,-507.39511338,0.00011,2]
[336688712,1725024639760,-2586.02150144,0.00011,2]
[336688713,1725024639772,-16277.64934177,0.00011,2]
[336688714,1725024639783,-4503.46066958,0.00011,2]
[336688715,1725024639794,-2400.47475159,0.00011,2]
[336688716,1725024639805,-616.89321857,0.00011,2]
[336688717,1725024639820,-323.21934277,0.00011,2]
[336688718,1725024639832,-15122.18966287,0.00011,2]
[336688719,1725024639844,-8602.52214844,0.00011,2]
[336688786,1725024640533,7500.0,0.000109,2]
[336688957,1725024642425,-320.67306707,0.00011,2]
[336688958,1725024642436,-677.73625,0.00011,2]
[336688959,1725024642448,-2376.54931499,0.00011,2]
[336688963,1725024642514,-1598.31428799,0.00011,2]
[336688964,1725024642526,-735.896,0.00011,2]
[336688965,1725024642537,-298.93134934,0.00011,2]
[336688966,1725024642561,-9291.90965979,0.00011,2]
[336688967,1725024642572,-1838.78,0.00011,2]
[336688968,1725024642583,-1719.99873845,0.00011,2]
[336688997,1725024643012,-1113.8701207,0.00011,2]
[336688998,1725024643024,-5400.0,0.00011,2]
[336689000,1725024643041,-1137.88598791,0.00011,2]
[336689002,1725024643053,-10988.3773015,0.00011,2]
[336689004,1725024643065,-737.99988251,0.00011,2]
[336689006,1725024643077,-1789.29207492,0.00011,2]
[336689132,1725024645367,-2133.07562019,0.00011,2]
[336689133,1725024645378,-1113.91876055,0.00011,2]
[336689134,1725024645389,-7593.45532814,0.00011,2]
[336689135,1725024645401,-432.00902886,0.00011,2]
[336689136,1725024645416,-550.0,0.00011,2]
[336689137,1725024645430,-4045.52753629,0.00011,2]
[336689138,1725024645445,-17189.36167256,0.00011,2]
[336689139,1725024645459,-10391.97917367,0.00011,2]
[336689140,1725024645474,-6349.584961,0.00011,2]
[336689141,1725024645502,-400.0,0.00011,2]
[336689142,1725024645514,-312.64,0.00011,2]
[336689143,1725024645528,-5022.72191446,0.00011,2]
[336689144,1725024645541,-585.40701541,0.00011,2]
[336689145,1725024645555,-10152.93128189,0.00011,2]
[336689146,1725024645568,-2420.86061955,0.00011,2]
[336689147,1725024645581,-3690.46625153,0.00011,2]
[336689148,1725024645594,-4999.62043342,0.00011,2]
[336689149,1725024645608,-879.9737992,0.00011,2]
[336689150,1725024645622,-873.74712415,0.00011,2]
[336689151,1725024645636,-835.91504645,0.00011,2]
[336689152,1725024645651,-674.79429573,0.00011,2]
[336689153,1725024645665,-1415.44956061,0.00011,2]
[336689154,1725024645679,-805.58226419,0.00011,2]
[336689155,1725024645693,-3894.50027725,0.00011,2]
[336689156,1725024645706,-481.61185414,0.00011,2]
[336689157,1725024645719,-1269.0,0.00011,2]
[336689158,1725024645732,-10164.3352765,0.00011,2]
[336689159,1725024645747,-2283.42218229,0.00011,2]
[336689160,1725024645760,-1401.42201098,0.00011,2]
[336689161,1725024645772,-675.75650086,0.00011,2]
[336689162,1725024645785,-557.8322401,0.00011,2]
[336689163,1725024645798,-685.11662691,0.00011,2]
[336689164,1725024645811,-3972.33381361,0.00011,2]
[336689165,1725024645827,-626.08111507,0.00011,2]
[336689166,1725024645840,-493.70431179,0.00011,2]
[336689167,1725024645934,-618.3903605,0.00011,2]
[336689168,1725024645947,-438.217861,0.00011,2]
[336689169,1725024650141,432.1752,0.000109,2]
[336689170,1725024686497,684.6,9.338e-05,2]
[336689171,1725024697235,150.0,0.00010914,2]
[336689172,1725024706353,1000.0,0.000109,2]
[336689173,1725024709261,229.36,0.00010959,2]
[336689174,1725024719799,191.13,0.00010959,2]
[336689175,1725024725198,7500.0,0.000109,2]
[336689176,1725024730271,387.0511,0.000109,2]
[336689177,1725024730614,159.28,0.00010959,2]
[336689178,1725024741166,796.4,0.00010959,2]
[336689179,1725024743478,213.7279,0.000109,2]
[336689180,1725024772858,153.52,8.932e-05,2]
[336689181,1725024774870,595.5701,0.000109,2]
[336689182,1725024794305,2061.31277988,0.00010894,2]
[336689183,1725024807092,310.2300743,0.00024,120]
[336689184,1725024811288,3638.59,0.000109,2]
[336689185,1725024814488,500.0,0.00010912,2]
[336689186,1725024838953,500.0,0.00010949,2]
[336689187,1725024839254,7500.0,0.000109,2]
[336689188,1725024872538,227.149,0.00010894,2]
[336689189,1725024879596,161.04138029,0.000109,2]
[336689190,1725024897130,2351.436,0.00010893,2]
[336689192,1725024918485,154.94,0.00010959,2]
[336689194,1725024938221,1118.4846,0.000109,2]
[336689195,1725024953097,7500.0,0.000109,2]
[336689202,1725024989879,158.18709279,0.000109,2]
[336689203,1725025022703,8897.3699,0.000109,2]
[336689204,1725025038307,15677.053,0.000109,2]
[336689205,1725025039644,6394.8276,0.000109,2]
[336689206,1725025046336,1000.0,0.00010956,2]
[336689207,1725025065080,1263.138,0.000109,2]
[336689208,1725025079164,166.39250322,0.000109,2]
[336689210,1725025182407,1320.69,0.00010188,2]
[336689211,1725025203018,676.14,9.027e-05,2]
[336689213,1725025248337,250.0,0.00010959,2]
[336689214,1725025300303,161.04138029,0.000109,2]
[336689215,1725025309912,250.0,0.00010229,2]
[336689216,1725025330807,3022.5,0.00010267,2]
[336689217,1725025334550,900.96,0.00010267,2]
[336689218,1725025365639,1500.0,0.00010875,2]
[336689219,1725025446457,166.2,0.00010258,2]
[336689220,1725025453175,204.8,0.00010303,2]
[336689221,1725025461656,2936.4621,0.000109,2]
[336689222,1725025543790,250.0,0.00010276,2]
[336689223,1725025693613,-217.21,0.00010966,2]
[336689224,1725025693642,-970.89011755,0.00010972,2]
[336689236,1725025712083,161.04138029,0.000109,2]
[336689241,1725025767686,642.33,9.007e-05,2]
[336689250,1725025831735,-25.10988245,0.00010972,2]
[336689252,1725025831745,-209.12,0.00010979,2]
[336689254,1725025831755,-366.47913755,0.0001099,2]
[336689262,1725025837464,174.17506022,0.000109,2]
[336689264,1725025837760,-416.35180577,0.0001099,2]
[336689265,1725025837770,-150.0,0.00010992,2]
[336689266,1725025837779,-1434.58018422,0.00010997,2]
[336689267,1725025837791,-1001.23583855,0.00010997,2]
[336689268,1725025837819,-764.14457792,0.00010997,2]
[336689269,1725025837995,-510.14939931,0.00010997,2]
[336689270,1725025838005,-2302.3902566,0.00010997,2]
[336689271,1725025838014,-31231.18134409,0.00010997,2]
[336689431,1725025839615,-1832.3088072,0.00010997,2]
[336689433,1725025839627,-1370.37733886,0.00010997,2]
[336689435,1725025839638,-500.0,0.00010997,2]
[336689438,1725025839650,-681.43362743,0.00010997,2]
[336689441,1725025839676,-405.30603576,0.00010997,2]
[336689443,1725025839687,-538.4970475,0.00010997,2]
[336689446,1725025839698,-1001.80563376,0.00010997,2]
[336689447,1725025839707,-3873.658774,0.00010997,2]
[336689449,1725025839717,-500.0,0.00010999,2]
[336689451,1725025839726,-500.0,0.00010999,2]
[336689453,1725025839735,-500.0,0.00010999,2]
[336689455,1725025839745,-500.0,0.00010999,2]
[336689457,1725025839754,-500.0,0.00010999,2]
[336689459,1725025839764,-349.77814944,0.00010999,2]
[336689461,1725025839774,-540.0,0.00011,2]
[336689463,1725025839783,-52486.54001955,0.00011,2]
[336689465,1725025839795,-269.59110002,0.00011,2]
[336689467,1725025839806,-253.66,0.00011,2]
[336689470,1725025839818,-6496.46948832,0.00011,2]
[336689472,1725025839829,-441.0526026,0.00011,2]
[336689474,1725025839844,-8819.33864548,0.00011,2]
[336689476,1725025839856,-735.2,0.00011,2]
[336689747,1725025842608,-1261.31414876,0.00011,2]
[336689797,1725025843056,-292.35005528,0.00011,2]
[336690013,1725025845506,-523.8456228,0.00011,2]
[336690020,1725025845567,-498.62,0.00011,2]
[336690049,1725025845919,-414.47369001,0.00011,2]
[336690051,1725025845932,-1906.18600947,0.00011,2]
[336690054,1725025845944,-431.2367175,0.00011,2]
[336690056,1725025845956,-635.84286283,0.00011,2]
[336690226,1725025867750,300.0,0.000104,3]
[336690227,1725025869903,600.0,0.000105,3]
[336690228,1725025872057,1000.0,0.000106,3]
[336690229,1725025875045,1300.0,0.000107,3]
[336690230,1725025876310,1700.0,0.000108,3]
[336690231,1725025878458,300.0,0.000109,3]
[336690232,1725025894132,650.0471,0.000109,2]
[336690233,1725025900845,260.3744,0.000109,2]
[336690234,1725025914983,5501.5662,0.000109,2]
[336690238,1725025927890,162.72,0.00010959,2]
[336690239,1725025942117,874.5562,0.000109,2]
[336690240,1725025946063,3114.1688,0.000109,2]
[336690241,1725025946091,219.80793522,0.000109,2]
[336690242,1725025976958,1500.0,0.00010772,2]
[336690243,1725025977003,150.0,0.00010935,2]
[336690244,1725025977042,150.0,0.00010896,2]
[336690245,1725025977071,150.0,0.00010794,2]
[336690246,1725025977126,150.0,0.00010796,2]
[336690248,1725026081494,1949.84,0.00010946,2]
[336690249,1725026114922,161.04138029,0.000109,2]
[336690250,1725026131490,157.07439659,0.00024,120]
[336690251,1725026152964,304.92,0.00010951,2]
[336690252,1725026279172,1548.289,0.000109,2]
[336690253,1725026285060,645.97,8.925e-05,2]
[336690255,1725026337230,1169.91,0.00010954,2]
[336690257,1725026383656,250.0,0.00010942,2]
[336690258,1725026415142,173.68,0.00010959,2]
[336690260,1725026459897,171.08,0.0001034,2]
[336690261,1725026461009,1852.42,0.0001034,2]
[336690262,1725026469095,1344.29,0.00010385,2]
[336690263,1725026470729,197.33,0.0001043,2]
[336690264,1725026505284,161.04138029,0.000109,2]
[336690265,1725026636977,150.0,0.00010781,2]
[336690267,1725026788519,613.67,9.075e-05,2]
[336690587,1725026857882,281.61245,0.0001089,2]
[336690589,1725026910263,162.99,0.00010959,2]
[336690595,1725026987700,-156.82,0.00010965,2]
[336690596,1725026987729,-200.0,0.00010977,2]
[336690597,1725026987761,-166.2,0.00010977,2]
[336690598,1725026987790,-2527.98806031,0.00010977,2]
[336690601,1725027031796,-151.66193969,0.00010977,2]
[336690602,1725027031805,-11442.49208193,0.00010995,2]
[336690603,1725027031816,-10605.69000253,0.00010995,2]
[336690604,1725027031827,-498.56133196,0.00010995,2]
[336690605,1725027031838,-906.95142544,0.00010995,2]
[336690606,1725027031849,-700.0,0.00010995,2]
[336690607,1725027031860,-1103.55713475,0.00010995,2]
[336690608,1725027031871,-3907.44097549,0.00010995,2]
[336690609,1725027031881,-150.0,0.00010996,2]
[336690610,1725027031891,-1891.9043889,0.00010997,2]
[336690611,1725027031900,-1062.5814073,0.00010997,2]
[336690612,1725027031909,-1808.01088315,0.00011,2]
[336690613,1725027031925,-1277.66,0.00011,2]
[336690614,1725027031937,-665.53911685,0.00011,2]
[336690615,1725027031946,-9229.83722305,0.00011,2]
[336690616,1725027031957,-4922.9158703,0.00011,2]
[336690617,1725027031970,-1354.61142599,0.00011,2]
[336690626,1725027037793,-10057.64443999,0.00011,2]
[336690628,1725027037889,-1191.41310921,0.00011,2]
[336690629,1725027037901,-887.83016339,0.00011,2]
[336690630,1725027037912,-299.58797889,0.00011,2]
[336690631,1725027037923,-7972.88874815,0.00011,2]
[336690632,1725027037934,-2665.46919121,0.00011,2]
[336690633,1725027037945,-15061.86977785,0.00011,2]
[336690634,1725027037956,-18958.581,0.00011,2]
[336690635,1725027037967,-595.83075586,0.00011,2]
[336690636,1725027038054,-742.11629914,0.00011,2]
[336690637,1725027038065,-277.0527081,0.00011,2]
[336690638,1725027038162,-7118.18690008,0.00011,2]
[336690692,1725027039805,-254.41072799,0.00011,2]
[336690693,1725027039817,-1487.92434299,0.00011,2]
[336690694,1725027039828,-387.72733961,0.00011,2]
[336690695,1725027039839,-4905.37844259,0.00011,2]
[336690696,1725027039850,-337.374,0.00011,2]
[336690697,1725027039861,-1742.4666701,0.00011,2]
[336690698,1725027039872,-914.55000007,0.00011,2]
[336690699,1725027039884,-18768.55938786,0.00011,2]